[Event "Elegant 1st Division League 2024"]
[Site "Dhaka"]
[Date "2024.07.11"]
[Round "1.1"]
[White "Uddipan Roy"]
[Black "Hossain, Showkat Pollab"]
[Result "1-0"]
[Annotator "NA RC"]
[ECO "B01"]
[WhiteElo "1967"]
[BlackElo "1990"]
[PlyCount "65"]
[EventDate "2024.07.10"]
[EventType "team-tourn"]
[EventCountry "BAN"]
[SourceTitle "playchess.com"]
[Source "ChessBase"]
[SourceQuality "1"]
[TimeControl "5400+30"]

1. e4 {[%emt 0:00:17]} d5 {[%emt 0:00:33]} 2. exd5 {[%emt 0:00:24]} Qxd5 {[%emt 0:00:02]} 3. Nc3 {[%emt 0:00:17]} Qa5 {[%emt 0:00:02]} 4. Bc4 {[%emt 0:00:19]} Nf6 {[%emt 0:00:59]} 5. d3 {[%emt 0:00:37]} c6 {[%emt 0:00:41]} 6. Nge2 {[%emt 0:03:47]} Nbd7 {[%emt 0:05:01]} 7. O-O {[%emt 0:21:23]} b5 {[%emt 0:05:46]} 8. Bb3 {[%emt 0:00:09]} Nc5 {[%emt 0:01:41]} 9. Be3 {[%emt 0:10:59]} b4 {[%emt 0:04:05]} 10. Ne4 {[%emt 0:19:58]} Ncxe4 11. dxe4 {[%emt 0:01:31]} Nxe4 {[%emt 1:17:10]} 12. Qd4 {[%emt 0:06:33]} Nd6 {[%emt 0:00:00]} 13. a3 {[%emt 0:02:57]} Qb5 {[%emt 0:00:00]} 14. Ng3 {[%emt 0:05:05]} bxa3 {[%emt 0:00:00]} 15. Rxa3 {[%emt 0:00:09]} a6 {[%emt 0:00:00]} 16. Ba4 {[%emt 0:03:09]} Qb7 {[%emt 0:00:00]} 17. Rb3 {[%emt 0:10:51]} Nb5 {[%emt 0:00:00]} 18. Qe4 $18 {[%emt 0:01:29]} Be6 {[%emt 0:00:00]} 19. c4 {[%emt 0:00:57]} Qc8 {[%emt 0:00:00]} 20. Rd3 {[%emt 0:08:21]} f5 {[%emt 0:00:00]} 21. Qf4 {[%emt 0:00:36]} Nd6 {[%emt 0:00:00]} 22. b3 {[%emt 0:00:52]} Nf7 {[%emt 0:00:00]} 23. Qd4 {[%emt 0:00:19]} Qb7 {[%emt 0:01:42]} 24. Qc5 {[%emt 0:00:48]} Bd7 {[%emt 0:00:35]} 25. Nxf5 {[%emt 0:00:40]} e6 {[%emt 0:00:15]} 26. Nd6+ {[%emt 0:00:21]} Bxd6 {[%emt 0:00:31]} 27. Rxd6 {[%emt 0:00:06]} Nxd6 {[%emt 0:00:10]} 28. Qxd6 {[%emt 0:00:05]} Qb8 {[%emt 0:01:49]} 29. Qc5 {[%emt 0:00:12]} Kf7 {[%emt 0:03:24]} 30. Rd1 {[%emt 0:00:02]} Be8 {[%emt 0:00:28]} 31. Rd4 {[%emt 0:00:44]} g6 {[%emt 0:00:34]} 32. Rf4+ {[%emt 0:00:12]} Kg7 {[%emt 0:00:07]} 33. Qe7+ {[%emt 0:00:11]} 1-0

[Event "Elegant 1st Division League 2024"]
[Site "Dhaka"]
[Date "2024.07.11"]
[Round "1.2"]
[White "Ahmed, Mahtabuddin"]
[Black "Abdul, Momin"]
[Result "1/2-1/2"]
[Annotator "NA RC"]
[ECO "A31"]
[WhiteElo "1974"]
[BlackElo "1911"]
[PlyCount "150"]
[EventDate "2024.07.10"]
[EventType "team-tourn"]
[EventCountry "BAN"]
[SourceTitle "playchess.com"]
[Source "ChessBase"]
[SourceQuality "1"]
[TimeControl "5400+30"]

1. Nf3 {[%emt 0:00:52]} Nf6 {[%emt 0:00:19]} 2. c4 {[%emt 0:01:17]} c5 {[%emt 0:01:01]} 3. d4 {[%emt 0:01:36]} cxd4 {[%emt 0:00:46]} 4. Nxd4 {[%emt 0:00:02]} a6 {[%emt 0:02:00]} 5. g3 {[%emt 0:01:35]} e5 {[%emt 0:02:02]} 6. Nf3 {[%emt 0:01:00] A31: Symmetrical English: 2 Nf3 Nf6 3 d4.} Nc6 {[%emt 0:00:28]} 7. Nc3 {[%emt 0:00:21]} Bb4 {[%emt 0:00:46]} 8. Bd2 {[%emt 0:03:44]} O-O {[%emt 0:04:20]} 9. Nd5 {[%emt 0:01:19]} Bxd2+ {[%emt 0:00:27]} 10. Qxd2 {[%emt 0:00:42]} Re8 {[%emt 0:04:07]} 11. Rd1 {[%emt 0:03:41]} b5 {[%emt 0:02:39]} 12. Nxf6+ {[%emt 0:12:18]} Qxf6 {[%emt 0:00:21]} 13. c5 {[%emt 0:00:49]} e4 {[%emt 0:00:51]} 14. Nd4 {[%emt 0:02:14]} Ne5 {[%emt 0:00:42]} 15. Bg2 {[%emt 0:01:14]} Nf3+ {[%emt 0:01:51]} 16. Bxf3 {[%emt 0:12:34]} exf3 {[%emt 0:00:50]} 17. O-O {[%emt 0:02:12]} fxe2 {[%emt 0:00:43]} 18. Nxe2 {[%emt 0:00:04]} Bb7 {[%emt 0:00:33]} 19. Nd4 {[%emt 0:05:44]} Qe5 {[%emt 0:07:25]} 20. b4 {[%emt 0:04:07]} Qd5 {[%emt 0:04:10]} 21. f3 {[%emt 0:00:04]} Qh5 {[%emt 0:06:45]} 22. g4 {[%emt 0:08:00]} Qh3 {[%emt 0:04:36]} 23. Qc3 {[%emt 0:10:17]} g6 {[%emt 0:01:42]} 24. Rf2 {[%emt 0:03:11]} h5 {[%emt 0:03:22]} 25. Rg2 {[%emt 0:03:45]} hxg4 {[%emt 0:02:06]} 26. Rxg4 {[%emt 0:02:36]} Re5 $15 {[%emt 0:02:46]} ({Beter is} 26... Qh5 $17 27. h3 a5 28. bxa5 Re5 (28... Qxh3 29. Nf5 $16)) 27. Rg3 {[%emt 0:04:02]} Qh4 {[%emt 0:01:33]} 28. Qd2 {[%emt 0:02:23]} Rae8 {[%emt 0:02:29]} 29. Qf2 {[%emt 0:01:16]} Qe7 {[%emt 0:02:27]} 30. f4 {[%emt 0:04:04]} Re1+ {[%emt 0:00:56]} 31. Rxe1 {[%emt 0:00:39]} Qxe1+ {[%emt 0:00:03]} 32. Qxe1 {[%emt 0:01:23]} Rxe1+ {[%emt 0:00:02]} 33. Kf2 {[%emt 0:00:08]} Re4 {[%emt 0:00:13]} 34. Rd3 {[%emt 0:01:41]} Rxf4+ {[%emt 0:00:36]} 35. Kg3 {[%emt 0:01:11]} Rf1 {[%emt 0:05:27]} 36. Nb3 {[%emt 0:01:32]} Rg1+ {[%emt 0:05:14]} 37. Kf4 {[%emt 0:00:37]} Bc6 {[%emt 0:01:41]} 38. Rd2 {[%emt 0:02:32]} Kf8 {[%emt 0:07:26]} 39. Na5 {[%emt 0:00:46]} Ke7 {[%emt 0:02:48]} 40. Nxc6+ {[%emt 0:00:39]} dxc6 {[%emt 0:00:04]} 41. Rd6 {[%emt 0:01:02]} Rf1+ {[%emt 0:00:02]} 42. Kg5 {[%emt 0:00:29]} Rf5+ {[%emt 0:00:05]} 43. Kg4 {[%emt 0:01:16]} Rf6 {[%emt 0:00:09]} 44. Rd2 {[%emt 0:00:12]} Re6 {[%emt 0:00:22]} 45. Kf4 {[%emt 0:00:19]} f6 {[%emt 0:23:45]} 46. h4 {[%emt 0:00:07]} Ke8 {[%emt 0:00:00]} 47. Rd3 {[%emt 0:00:20]} Ke7 {[%emt 0:00:00]} 48. Rd2 {[%emt 0:00:08]} Re1 {[%emt 0:00:00]} 49. Rd6 {[%emt 0:00:35]} Rb1 {[%emt 0:00:00]} 50. a3 {[%emt 0:00:32]} Rb3 {[%emt 0:00:00]} 51. Rxc6 {[%emt 0:00:24]} Rxa3 {[%emt 0:00:00]} 52. Ke4 {[%emt 0:02:19]} Rh3 {[%emt 0:00:00]} 53. Rxa6 {[%emt 0:00:32]} Rxh4+ {[%emt 0:00:00]} 54. Kd5 {[%emt 0:00:12]} Rxb4 {[%emt 0:00:00]} 55. Ra7+ {[%emt 0:00:01]} Kd8 {[%emt 0:00:00]} 56. c6 {[%emt 0:01:08]} Rb1 {[%emt 0:00:02]} 57. Kc5 {[%emt 0:00:34]} b4 {[%emt 0:02:08]} 58. Kb6 {[%emt 0:00:07]} b3 {[%emt 0:01:06]} 59. c7+ {[%emt 0:00:46]} Kd7 {[%emt 0:00:08]} 60. Kb7 {[%emt 0:00:10]} Rc1 {[%emt 0:00:10]} 61. Kb8 {[%emt 0:00:02]} Ke6 {[%emt 0:00:42]} 62. Rb7 {[%emt 0:01:26]} g5 {[%emt 0:00:23]} 63. Rxb3 {[%emt 0:00:36]} g4 {[%emt 0:00:24]} 64. Rb6+ {[%emt 0:00:31]} Ke5 {[%emt 0:00:12]} 65. Rb5+ {[%emt 0:00:06]} Kf4 {[%emt 0:01:15]} 66. Rb4+ {[%emt 0:00:37]} Kg5 {[%emt 0:04:00]} 67. c8=Q {[%emt 0:00:22]} Rxc8+ {[%emt 0:00:00]} 68. Kxc8 {[%emt 0:01:26]} g3 {[%emt 0:00:00]} 69. Kd7 {[%emt 0:00:00]} f5 {[%emt 0:00:00]} 70. Rb8 {[%emt 0:00:00]} Kg4 {[%emt 0:00:00]} 71. Rg8+ {[%emt 0:00:58]} Kf3 {[%emt 0:00:53]} 72. Ke6 {[%emt 0:00:08]} g2 {[%emt 0:00:50]} 73. Kxf5 {[%emt 0:00:07]} Kf2 {[%emt 0:00:02]} 74. Kf4 {[%emt 0:00:14]} g1=Q {[%emt 0:00:09]} 75. Rxg1 {[%emt 0:00:03]} Kxg1 {[%emt 0:00:02]} 1/2-1/2

[Event "Elegant 1st Division League 2024"]
[Site "Dhaka"]
[Date "2024.07.11"]
[Round "1.3"]
[White "Bivor Adak"]
[Black "Shourya Paul"]
[Result "1/2-1/2"]
[Annotator "NA RC"]
[ECO "C54"]
[WhiteElo "1967"]
[BlackElo "1813"]
[PlyCount "71"]
[EventDate "2024.07.10"]
[EventType "team-tourn"]
[EventCountry "BAN"]
[SourceTitle "playchess.com"]
[Source "ChessBase"]
[SourceQuality "1"]
[TimeControl "5400+30"]

1. e4 {[%emt 0:00:20]} e5 {[%emt 0:00:32]} 2. Nf3 {[%emt 0:00:34]} Nc6 {[%emt 0:00:23]} 3. Bc4 {[%emt 0:00:45]} Nf6 {[%emt 0:00:19]} 4. d3 {[%emt 0:00:39]} Bc5 {[%emt 0:00:38]} 5. c3 {[%emt 0:00:35]} d6 {[%emt 0:01:04]} 6. O-O {[%emt 0:01:29]} a6 {[%emt 0:00:30]} 7. a4 {[%emt 0:00:57] 7.Re1 setzt einen neuen Trend. C54: Italienische Partie (Hauptvariante).} Ba7 {[%emt 0:01:37]} 8. Re1 {[%emt 0:01:24]} h6 {[%emt 0:04:59]} 9. Nbd2 {[%emt 0:00:36]} O-O {[%emt 0:03:11]} 10. h3 {[%emt 0:04:28]} Re8 {[%emt 0:02:13]} 11. b4 {[%emt 0:04:13]} Nh5 {[%emt 0:15:24]} 12. Nf1 {[%emt 0:03:29]} Qf6 {[%emt 0:01:55]} 13. Ne3 {[%emt 0:08:14]} Nf4 {[%emt 0:06:48]} 14. Ng4 {[%emt 0:28:52]} Bxg4 {[%emt 0:14:57]} 15. hxg4 {[%emt 0:00:18]} Ne7 {[%emt 0:02:25]} 16. Be3 $146 {[%emt 0:08:34]} ({Predecessor:} 16. d4 Neg6 17. g3 Ne6 18. Be3 Ngf8 19. Kg2 Nh7 20. dxe5 dxe5 21. Bxa7 Rxa7 22. Qd2 {0-1 Wagner,D (2570)-Malyi,V (2391) Titled Tuesday intern op 09th Aug Early blitz 2022 (2)}) 16... d5 {[%emt 0:15:41]} 17. exd5 {[%emt 0:08:29]} Bxe3 {[%emt 0:04:37]} 18. fxe3 {[%emt 0:00:24]} Nfxd5 {[%emt 0:00:10]} 19. Qb3 $11 {[%emt 0:04:45]} ({Wit zou moeten proberen} 19. e4 $14 Nf4 (19... Nxc3 20. Qc1 $14) 20. g3) 19... Rad8 {[%emt 0:07:11]} 20. Ra2 {[%emt 0:00:23]} Rf8 {[%emt 0:02:19]} 21. Rf2 {[%emt 0:01:11]} Qd6 {[%emt 0:02:35]} 22. d4 {[%emt 0:05:45]} e4 {[%emt 0:01:43]} 23. Ne5 {[%emt 0:00:27]} f6 {[%emt 0:02:49]} 24. Bxd5+ {[%emt 0:00:48]} Qxd5 {[%emt 0:00:10]} 25. Qxd5+ {[%emt 0:01:29]} Rxd5 {[%emt 0:00:19]} 26. Nc4 {[%emt 0:00:10]} Rg5 {[%emt 0:02:07]} 27. Rf4 {[%emt 0:02:49]} Nd5 {[%emt 0:00:13]} 28. Rxe4 {[%emt 0:00:07]} Nxc3 {[%emt 0:00:03]} 29. Re7 {[%emt 0:00:08]} Rf7 {[%emt 0:00:04]} 30. Re8+ {[%emt 0:00:07]} Rf8 {[%emt 0:00:03]} 31. Re7 {[%emt 0:00:08]} Rf7 {[%emt 0:00:04]} 32. Re8+ {[%emt 0:00:06]} Kh7 {[%emt 0:04:25]} 33. Na5 {[%emt 0:02:50]} c6 {[%emt 0:01:57]} 34. Rb8 {[%emt 0:00:41]} Nxa4 {[%emt 0:00:43]} 35. Rxb7 {[%emt 0:01:54]} Rxb7 {[%emt 0:00:29]} 36. Nxb7 {[%emt 0:00:13]} 1/2-1/2

[Event "Elegant 1st Division League 2024"]
[Site "Dhaka"]
[Date "2024.07.11"]
[Round "1.4"]
[White "Shankhodip De"]
[Black "Md Nurul Islam, Mahin"]
[Result "1-0"]
[Annotator "NA RC"]
[ECO "E62"]
[WhiteElo "1942"]
[BlackElo "1833"]
[PlyCount "95"]
[EventDate "2024.07.10"]
[EventType "team-tourn"]
[EventCountry "BAN"]
[SourceTitle "playchess.com"]
[Source "ChessBase"]
[SourceQuality "1"]
[TimeControl "5400+30"]

1. Nf3 {[%emt 0:00:46]} Nf6 {[%emt 0:01:15]} 2. g3 {[%emt 0:00:33]} g6 {[%emt 0:00:09]} 3. Bg2 {[%emt 0:00:21]} Bg7 {[%emt 0:03:03]} 4. c4 {[%emt 0:00:34]} c6 {[%emt 0:10:52]} 5. O-O {[%emt 0:02:38]} d6 {[%emt 0:02:26]} 6. d4 {[%emt 0:01:01]} O-O {[%emt 0:00:51]} 7. Nc3 {[%emt 0:00:15]} Bf5 {[%emt 0:00:41]} 8. Ne1 {[%emt 0:05:45]} Bc8 {[%emt 0:04:23] E62: Konings-Indisch: Fianchetto: 6...c6 en Panno Variant (6...Pc6) zonder ...a6.} 9. e4 {[%emt 0:01:53]} e5 {[%emt 0:02:21]} 10. d5 {[%emt 0:01:37]} c5 {[%emt 0:02:12]} 11. Nd3 {[%emt 0:02:55]} Ne8 {[%emt 0:01:32]} 12. f4 {[%emt 0:07:46]} Nd7 {[%emt 0:13:24]} 13. Be3 {[%emt 0:04:09]} Nb6 {[%emt 0:01:59]} 14. Qb3 {[%emt 0:02:04]} Nd7 {[%emt 0:03:18]} 15. Rae1 {[%emt 0:02:09]} Qb6 {[%emt 0:00:27]} 16. Qc2 {[%emt 0:00:55]} Qa6 {[%emt 0:05:39]} 17. b3 {[%emt 0:02:02]} Qa5 {[%emt 0:02:37]} 18. Bd2 {[%emt 0:05:31]} Qd8 {[%emt 0:00:45]} 19. f5 {[%emt 0:10:00]} a6 {[%emt 0:05:09]} 20. g4 {[%emt 0:06:47]} f6 {[%emt 0:02:53]} 21. h4 {[%emt 0:04:25]} g5 {[%emt 0:01:28]} 22. Kf2 {[%emt 0:03:50]} h6 {[%emt 0:00:49]} 23. Rh1 {[%emt 0:04:16]} Rb8 {[%emt 0:01:23]} 24. Re3 {[%emt 0:10:03]} b5 {[%emt 0:01:57]} 25. Reh3 {[%emt 0:00:20]} bxc4 {[%emt 0:01:24]} 26. bxc4 {[%emt 0:00:01]} Nb6 {[%emt 0:00:45]} 27. Ne2 {[%emt 0:00:38]} Nd7 {[%emt 0:30:18]} 28. Qc1 {[%emt 0:21:16]} Kf7 $18 {[%emt 0:00:00]} 29. Ng1 {[%emt 0:00:00]} Rg8 {[%emt 0:00:00]} 30. Nf3 {[%emt 0:00:00]} Bf8 {[%emt 0:00:00]} 31. Bf1 {[%emt 0:00:00]} Qb6 {[%emt 0:00:00]} 32. hxg5 {[%emt 0:00:00]} fxg5 {[%emt 0:00:00]} 33. Bxg5 {[%emt 0:00:00]} Nef6 {[%emt 0:00:00]} 34. Bxf6 {[%emt 0:00:00]} Nxf6 {[%emt 0:00:00]} 35. Nd2 {[%emt 0:00:00]} Rxg4 {[%emt 0:00:00]} 36. Be2 {[%emt 0:00:00]} Rg8 {[%emt 0:00:00]} 37. Rh4 {[%emt 0:00:00]} Qa5 {[%emt 0:00:29]} 38. a3 {[%emt 0:01:03]} Bd7 {[%emt 0:00:59]} 39. Nf3 {[%emt 0:01:11]} Rb3 {[%emt 0:01:51]} 40. a4 {[%emt 0:01:07]} Bxa4 {[%emt 0:01:02]} 41. Qa1 {[%emt 0:01:23]} Rc3 {[%emt 0:00:48]} 42. Nfxe5+ {[%emt 0:00:53]} dxe5 {[%emt 0:00:29]} 43. Nxe5+ {[%emt 0:00:04]} Ke8 {[%emt 0:00:54]} 44. Nc6 {[%emt 0:00:16]} Qc7 {[%emt 0:01:18]} 45. Qxc3 {[%emt 0:00:11]} Bxc6 {[%emt 0:00:17]} 46. Qxf6 {[%emt 0:01:35]} Qg3+ {[%emt 0:00:20]} 47. Kf1 {[%emt 0:00:03]} Bd7 {[%emt 0:00:54]} 48. Bh5+ {[%emt 0:00:08]} 1-0

[Event "Elegant 1st Division League 2024"]
[Site "Dhaka"]
[Date "2024.07.11"]
[Round "1.5"]
[White "Bhosale Shriraj"]
[Black "abu, Hanif"]
[Result "1-0"]
[Annotator "NA RC"]
[ECO "A07"]
[WhiteElo "2043"]
[BlackElo "2076"]
[PlyCount "73"]
[EventDate "2024.07.10"]
[EventType "team-tourn"]
[EventCountry "BAN"]
[SourceTitle "playchess.com"]
[Source "ChessBase"]
[SourceQuality "1"]
[TimeControl "5400+30"]

1. Nf3 {[%emt 0:00:19]} g6 {[%emt 0:00:07]} 2. g3 {[%emt 0:00:18]} Bg7 {[%emt 0:00:08]} 3. Bg2 {[%emt 0:00:05]} e5 {[%emt 0:00:07]} 4. d3 {[%emt 1:31:48]} d5 {[%emt 0:00:08]} 5. O-O {[%emt 0:00:00]} Ne7 {[%emt 0:00:08]} 6. e4 {[%emt 0:00:00]} O-O {[%emt 0:00:11]} 7. c3 {[%emt 0:00:00] A07: Barcza-System (Königsfianchetto mit möglichen Übergängen in andere Systeme).} c5 {[%emt 0:04:50]} 8. exd5 {[%emt 0:00:00]} Nxd5 {[%emt 0:02:08]} 9. Qb3 {[%emt 0:00:00]} Nb6 {[%emt 0:01:42]} 10. Be3 {[%emt 0:00:00]} Qc7 {[%emt 0:00:49]} 11. Ng5 {[%emt 0:00:00]} Na6 {[%emt 0:02:13]} 12. Na3 {[%emt 0:00:00]} h6 {[%emt 0:05:57]} 13. Nb5 {[%emt 0:00:00]} Qe7 {[%emt 0:01:32]} 14. Nxa7 {[%emt 0:00:00]} Qc7 {[%emt 0:08:29]} 15. Nxc8 {[%emt 0:00:00]} Raxc8 {[%emt 0:00:29]} 16. Ne4 {[%emt 0:00:00]} Kh7 {[%emt 0:01:27]} 17. f4 {[%emt 0:00:00]} f5 {[%emt 0:01:08]} 18. Nd2 {[%emt 0:00:00]} Rcd8 {[%emt 0:00:57]} 19. Nc4 {[%emt 0:00:00]} Nxc4 {[%emt 0:12:05]} 20. Qxc4 {[%emt 0:00:00]} Rd7 {[%emt 0:01:13]} 21. fxe5 {[%emt 0:00:00]} Bxe5 {[%emt 0:05:01]} 22. Rae1 {[%emt 0:00:00]} Rfd8 {[%emt 0:00:35]} 23. Qh4 {[%emt 0:00:00]} Bg7 {[%emt 0:00:34]} 24. Bg5 {[%emt 0:00:00]} Rf8 {[%emt 0:01:07]} 25. Re6 {[%emt 0:00:00]} Rff7 {[%emt 0:02:58]} 26. g4 {[%emt 0:00:00]} Rd6 {[%emt 0:17:23]} 27. gxf5 {[%emt 0:00:00]} Rxf5 {[%emt 0:01:13]} 28. Re7 {[%emt 0:00:00]} Rxg5 {[%emt 0:07:08]} 29. Rxc7 {[%emt 0:00:00]} Nxc7 {[%emt 0:00:10]} 30. Qf4 {[%emt 0:00:00]} Rd7 {[%emt 0:00:34]} 31. h4 {[%emt 0:00:00]} Re5 {[%emt 0:03:53]} 32. Be4 {[%emt 0:00:00]} ({Don't take} 32. Bxb7 Nd5 33. Bxd5 Rexd5 $18) 32... h5 {[%emt 0:04:52]} 33. Qg3 {[%emt 0:00:00]} (33. Bxb7 Rxd3 34. Be4 Rd6 $14) 33... Rd6 {[%emt 0:02:03]} 34. Rf7 {[%emt 0:00:00]} Rxe4 {[%emt 0:08:52]} 35. Qxd6 {[%emt 0:00:00]} Rg4+ {[%emt 0:01:41]} 36. Kf2 {[%emt 0:00:00]} Ne8 {[%emt 0:00:15]} 37. Qe7 {[%emt 0:00:00]} 1-0

[Event "Elegant 1st Division League 2024"]
[Site "Dhaka"]
[Date "2024.07.11"]
[Round "1.6"]
[White "Ahmed, Feroz"]
[Black "abzid, Rahman"]
[Result "0-1"]
[Annotator "NA RC"]
[ECO "E09"]
[WhiteElo "2042"]
[BlackElo "2037"]
[PlyCount "70"]
[EventDate "2024.07.10"]
[EventType "team-tourn"]
[EventCountry "BAN"]
[SourceTitle "playchess.com"]
[Source "ChessBase"]
[SourceQuality "1"]
[TimeControl "5400+30"]

1. c4 {[%emt 0:00:04]} Nf6 {[%emt 0:00:14]} 2. Nf3 {[%emt 0:00:32]} e6 {[%emt 0:00:05]} 3. d4 {[%emt 0:00:36]} d5 {[%emt 0:00:17]} 4. g3 {[%emt 0:01:59]} Be7 {[%emt 0:00:23]} 5. Bg2 {[%emt 0:00:08]} O-O {[%emt 0:00:08]} 6. O-O {[%emt 0:00:05]} Nbd7 {[%emt 0:00:15]} 7. b3 {[%emt 0:05:14]} c6 {[%emt 0:02:04]} 8. Qc2 {[%emt 0:06:36]} b6 {[%emt 0:01:52]} 9. Nbd2 {[%emt 0:08:40]} Bb7 {[%emt 0:08:19]} 10. Bb2 {[%emt 0:10:25]} Rc8 {[%emt 0:00:33]} 11. Rad1 {[%emt 0:00:34]} c5 {[%emt 0:08:13]} 12. Qb1 {[%emt 0:05:36] E09: Closed Catalan: Main Line: 7 Qc2 c6 8 Nbd2.} Qc7 {[%emt 0:06:06]} 13. cxd5 {[%emt 0:02:25]} exd5 {[%emt 0:01:09]} 14. Nh4 {[%emt 0:04:47]} Rfe8 {[%emt 0:05:15]} 15. Nf5 {[%emt 0:00:43]} Bf8 {[%emt 0:00:18]} 16. dxc5 {[%emt 0:02:47]} bxc5 {[%emt 0:00:57]} 17. e3 {[%emt 0:01:08]} g6 {[%emt 0:01:47]} 18. Nh4 $1 {[%emt 0:04:07]} Bg7 {[%emt 0:05:48]} 19. Rc1 {[%emt 0:01:13]} Qb6 {[%emt 0:02:16]} 20. Rfd1 {[%emt 0:01:46]} a5 {[%emt 0:04:18]} 21. Bc3 {[%emt 0:08:32]} Bc6 {[%emt 0:04:57]} 22. e4 {[%emt 0:06:54]} d4 {[%emt 0:08:02]} 23. Nc4 {[%emt 0:01:40]} Qb8 {[%emt 0:00:28]} 24. Bxa5 {[%emt 0:06:33]} Bxe4 {[%emt 0:00:31]} 25. Bxe4 {[%emt 0:00:52]} Nxe4 {[%emt 0:00:56]} 26. b4 $2 {[%emt 0:01:05]} (26. Qd3 $17 {was een poging waard.}) 26... Nc3 {[%emt 0:09:37]} 27. Rxc3 {[%emt 0:01:20]} dxc3 {[%emt 0:00:10]} 28. Rxd7 {[%emt 0:03:41]} Qb5 {[%emt 0:00:12]} 29. Nb6 $19 {[%emt 0:04:23]} cxb4 {[%emt 0:11:35]} 30. Rd5 {[%emt 0:03:10]} c2 {[%emt 0:01:17]} 31. Qc1 {[%emt 0:01:36]} Rc5 {[%emt 0:01:52]} 32. Rd7 {[%emt 0:06:30]} Qxa5 {[%emt 0:00:59]} 33. Nd5 {[%emt 0:00:26]} Rxd5 {[%emt 0:00:52]} 34. Rxd5 {[%emt 0:00:49]} Qxd5 {[%emt 0:00:11]} 35. Ng2 {[%emt 0:00:32]} Qd1+ {[%emt 0:00:15]} 0-1

[Event "Elegant 1st Division League 2024"]
[Site "Dhaka"]
[Date "2024.07.11"]
[Round "1.7"]
[White "Tajane Ganesh"]
[Black "Md, Sariatullah"]
[Result "1/2-1/2"]
[Annotator "RC"]
[ECO "C50"]
[WhiteElo "1772"]
[BlackElo "2005"]
[PlyCount "119"]
[EventDate "2024.07.10"]
[EventType "team-tourn"]
[EventCountry "BAN"]
[SourceTitle "playchess.com"]
[Source "ChessBase"]
[SourceQuality "1"]
[TimeControl "5400+30"]

1. e4 {[%emt 0:01:44]} Nc6 {[%emt 0:00:23]} 2. Nc3 {[%emt 0:02:05]} e5 {[%emt 0:00:11]} 3. Bc4 {[%emt 0:00:38]} Nf6 {[%emt 0:00:11]} 4. d3 {[%emt 0:00:37]} h6 {[%emt 0:00:42]} 5. Nf3 {[%emt 0:01:50]} a6 {[%emt 0:01:47]} 6. O-O {[%emt 0:01:43]} Bc5 {[%emt 0:00:31]} 7. Be3 {[%emt 0:02:22]} Bxe3 {[%emt 0:01:10]} 8. fxe3 {[%emt 0:00:03]} O-O {[%emt 0:00:22]} 9. Qe1 {[%emt 0:30:33]} d6 {[%emt 0:00:49]} 10. Nh4 {[%emt 0:00:35]} Be6 {[%emt 0:09:36]} 11. Nf5 {[%emt 0:02:13]} Kh7 {[%emt 0:10:10]} 12. Qh4 {[%emt 0:06:54]} Ng8 {[%emt 0:07:48]} 13. Qg3 {[%emt 0:06:22]} Qg5 {[%emt 0:00:29]} 14. Nd5 {[%emt 0:07:24]} Qxg3 {[%emt 0:02:48]} 15. Nxg3 {[%emt 0:00:20]} Rac8 {[%emt 0:02:51]} 16. Bb3 {[%emt 0:01:24]} Na5 {[%emt 0:02:09]} 17. Rf3 {[%emt 0:01:19]} Nxb3 {[%emt 0:00:51]} 18. axb3 {[%emt 0:00:09]} c6 {[%emt 0:02:13]} 19. Nb6 {[%emt 0:02:48]} Rcd8 {[%emt 0:00:11]} 20. Nc4 {[%emt 0:00:14]} g6 {[%emt 0:00:50]} 21. d4 {[%emt 0:06:14]} h5 {[%emt 0:01:41]} 22. Rf2 {[%emt 0:03:37]} Kg7 {[%emt 0:02:54]} 23. Ne2 {[%emt 0:05:12]} f6 {[%emt 0:03:39]} 24. Rd1 {[%emt 0:01:46]} d5 {[%emt 0:04:14]} 25. exd5 {[%emt 0:03:48]} cxd5 {[%emt 0:00:44]} 26. Na5 {[%emt 0:00:43]} Rd7 {[%emt 0:02:44]} 27. b4 {[%emt 0:03:16]} Rc8 {[%emt 0:01:51]} 28. c3 {[%emt 0:03:21]} e4 {[%emt 0:01:29]} 29. Ra1 {[%emt 0:01:35]} b6 {[%emt 0:01:36]} 30. Nb3 {[%emt 0:00:10]} Ra7 {[%emt 0:00:42]} 31. Rff1 {[%emt 0:01:02]} Nh6 {[%emt 0:00:18]} 32. h3 {[%emt 0:02:14]} Nf5 {[%emt 0:01:23]} 33. Kf2 {[%emt 0:01:21]} Nd6 {[%emt 0:00:51]} 34. Nd2 {[%emt 0:00:29]} g5 {[%emt 0:02:39]} 35. h4 {[%emt 0:00:38]} Nf5 {[%emt 0:00:18]} 36. hxg5 {[%emt 0:00:23]} fxg5 {[%emt 0:00:03]} 37. Ng3 {[%emt 0:00:10]} Nh6 {[%emt 0:01:19]} 38. Nxh5+ {[%emt 0:01:05]} Kg6 {[%emt 0:00:21]} 39. Ng3 {[%emt 0:00:13]} Ng4+ {[%emt 0:03:54]} 40. Ke2 {[%emt 0:00:07]} Bd7 {[%emt 0:00:59]} 41. Rfc1 {[%emt 0:01:41]} Bb5+ {[%emt 0:00:56]} 42. c4 {[%emt 0:00:03]} dxc4 {[%emt 0:00:24]} 43. Rc3 {[%emt 0:00:13]} Re7 {[%emt 0:02:52]} 44. Ngxe4 {[%emt 0:00:38]} Rce8 {[%emt 0:05:05]} 45. Kf3 {[%emt 0:00:47]} Nh6 {[%emt 0:01:53]} 46. Nd6 {[%emt 0:00:45]} Rf8+ {[%emt 0:01:31]} 47. Ke2 {[%emt 0:00:37]} Rd8 {[%emt 0:02:59]} 48. Nxb5 {[%emt 0:00:23]} axb5 {[%emt 0:00:07]} 49. Nf3 {[%emt 0:00:15]} Ng4 {[%emt 0:01:45]} 50. b3 {[%emt 0:00:47]} Rde8 {[%emt 0:00:36]} 51. Ne5+ {[%emt 0:00:33]} Nxe5 {[%emt 0:00:12]} 52. dxe5 {[%emt 0:00:01]} cxb3 {[%emt 0:02:09]} 53. Rxb3 {[%emt 0:00:13]} Rxe5 {[%emt 0:00:08]} 54. Rd1 {[%emt 0:00:24]} R8e6 {[%emt 0:00:26]} 55. Rd4 {[%emt 0:00:21]} Rc6 {[%emt 0:00:53]} 56. Rbd3 {[%emt 0:00:38]} Kf5 {[%emt 0:00:18]} 57. Kf3 {[%emt 0:01:08]} Rc4 {[%emt 0:01:27]} 58. g4+ {[%emt 0:00:35]} Kf6 {[%emt 0:01:07]} 59. Rd6+ {[%emt 0:00:23]} Re6 {[%emt 0:00:16]} 60. R6d4 {[%emt 0:00:33]} 1/2-1/2